bitfinex/quotes_BTCUSD_20220307
["timestamp","ask_amount","ask_price","bid_price","bid_amount"]
[1646650103824,0.8992,38163.0,38155.0,0.001]
[1646650103825,0.45,38157.0,38155.0,0.001]
[1646650104024,0.47619,38157.0,38155.0,0.001]
[1646650104225,0.05,38156.0,38155.0,0.001]
[1646650104425,0.51050231,38156.0,38155.0,0.001]
[1646650104625,0.21050231,38156.0,38155.0,0.001]
[1646650105673,1.10970231,38156.0,38155.0,0.001]
[1646650106873,0.02464,38160.0,38155.0,0.001]
[1646650107673,0.02464,38160.0,38156.0,0.00023158]
[1646650108580,0.25,38159.0,38156.0,0.00023158]
[1646650108776,0.27619,38159.0,38155.0,0.261]
[1646650108974,0.02464,38160.0,38156.0,0.00023158]
[1646650109224,0.07464,38160.0,38156.0,0.00023158]
[1646650109425,0.02464,38160.0,38156.0,0.30023158]
[1646650109627,0.02464,38160.0,38156.0,0.41797758]
[1646650109823,0.02464,38160.0,38156.0,0.417746]
[1646650110028,0.02464,38160.0,38156.0,0.41797758]
[1646650110223,0.02464,38160.0,38157.0,0.2178024]
[1646650110426,0.02464,38160.0,38158.0,0.26338264]
[1646650111326,0.02464,38160.0,38158.0,0.56338264]
[1646650111523,0.02464,38160.0,38158.0,0.26338264]
[1646650114776,0.02464,38160.0,38159.0,0.3]
[1646650114976,0.02464,38160.0,38158.0,0.21118264]
[1646650115178,0.02464,38160.0,38159.0,0.42739339]
[1646650115578,0.22274114,38173.0,38162.0,0.065512]
[1646650115878,0.5507,38177.0,38163.0,0.3522]
[1646650116079,0.21717257,38178.0,38169.0,0.15835527]
[1646650116282,0.01308,38177.0,38170.0,0.3]
[1646650116484,0.01308,38177.0,38169.0,0.45835527]
[1646650116734,0.45,38176.0,38170.0,0.065515]
[1646650117133,0.21717257,38178.0,38170.0,0.065515]
[1646650117332,0.45,38176.0,38170.0,0.065515]
[1646650117534,0.45,38176.0,38168.0,0.3050208]
[1646650117937,0.26223924,38167.0,38166.0,0.0522]
[1646650118335,0.17223924,38167.0,38166.0,0.0522]
[1646650118536,0.17223924,38167.0,38166.0,0.37422328]
[1646650119136,0.17168106,38167.0,38166.0,0.37422328]
[1646650121581,0.17168106,38167.0,38166.0,0.0522]
[1646650123379,0.17168106,38167.0,38166.0,0.29896583]
[1646650124229,0.16168106,38167.0,38166.0,0.29896583]
[1646650128583,0.1345,38180.0,38167.0,1.22619]
[1646650128779,0.1345,38180.0,38169.0,0.130984]
[1646650128982,0.4349,38182.0,38171.0,0.01585358]
[1646650129176,0.4349,38182.0,38172.0,0.0522]
[1646650129378,0.4349,38182.0,38178.0,0.19927938]
[1646650129578,0.30708304,38185.0,38178.0,0.25147938]
[1646650131178,0.30708304,38185.0,38178.0,0.0522]
[1646650132337,0.35708304,38185.0,38178.0,0.0522]
[1646650134754,0.16470639,38181.0,38178.0,0.0522]
[1646650135148,0.21470639,38181.0,38178.0,0.0522]
[1646650135379,0.21470639,38181.0,38173.0,0.0552]
[1646650135585,0.21470639,38181.0,38173.0,0.0522]
[1646650136280,0.21470639,38181.0,38170.0,0.15722882]
[1646650136281,0.3745523,38180.0,38170.0,0.15722882]
[1646650136981,0.5,38179.0,38170.0,0.15722882]
[1646650137181,0.3,38179.0,38170.0,0.15722882]
[1646650139832,0.05,38179.0,38176.0,0.1908339]
[1646650140230,0.07619,38182.0,38176.0,0.1908339]
[1646650140430,0.35,38182.0,38171.0,0.0522]
[1646650140632,0.3,38181.0,38171.0,0.0522]
[1646650140830,0.2,38181.0,38171.0,0.0522]
[1646650141030,0.16423023,38181.0,38171.0,0.0522]
[1646650141430,0.45,38179.0,38172.0,0.18382635]
[1646650141629,0.25,38179.0,38172.0,0.18382635]
[1646650141832,0.05,38179.0,38172.0,0.18382635]
[1646650142233,0.3,38180.0,38172.0,0.18382635]
[1646650142430,0.05,38180.0,38172.0,0.18382635]
[1646650142633,0.2,38181.0,38172.0,0.18382635]
[1646650142882,0.05,38180.0,38172.0,0.18382635]
[1646650143285,0.45,38179.0,38171.0,0.0522]
[1646650144281,0.45,38179.0,38172.0,0.19834292]
[1646650144582,0.51051107,38179.0,38172.0,0.19834292]
[1646650146085,0.45,38179.0,38172.0,0.19834292]
[1646650147926,0.36901441,38170.0,38169.0,0.3]
[1646650148126,0.36901441,38170.0,38169.0,0.0522]
[1646650148329,0.36901441,38170.0,38169.0,0.22549848]
[1646650148527,0.36901441,38170.0,38169.0,0.52549848]
[1646650148729,0.36901441,38170.0,38169.0,0.22549848]
[1646650149330,0.41901441,38170.0,38169.0,0.22549848]
[1646650149730,0.41901441,38170.0,38169.0,0.52549848]
[1646650150392,0.36901441,38170.0,38169.0,0.55168848]
[1646650150891,0.51859493,38185.0,38169.0,0.55168848]
[1646650150892,0.30708304,38185.0,38172.0,0.091689]
[1646650151190,0.30708304,38185.0,38173.0,0.3522]
[1646650151592,0.51089351,38185.0,38177.0,0.35667918]
[1646650151799,0.58045952,38185.0,38178.0,0.0522]
[1646650151992,0.58045952,38185.0,38178.0,0.33280354]
[1646650152191,0.51089351,38185.0,38178.0,0.33280354]
[1646650152993,0.51089351,38185.0,38178.0,0.63280354]
[1646650153191,0.56089351,38185.0,38178.0,0.63280354]
[1646650153391,0.35708304,38185.0,38178.0,0.63280354]
[1646650154234,0.35708304,38185.0,38178.0,0.33280354]
[1646650154635,0.20460245,38183.0,38178.0,0.0522]
[1646650155232,0.25460245,38183.0,38178.0,0.0522]
[1646650155433,0.45,38182.0,38178.0,0.0522]
[1646650155638,0.14,38179.0,38171.0,0.1396]
[1646650155841,0.34900208,38181.0,38167.0,0.5]
[1646650155842,0.45,38176.0,38167.0,0.5]
[1646650156034,0.05,38174.0,38167.0,0.5]
[1646650156834,0.20029748,38173.0,38167.0,0.5]
[1646650157034,0.20029748,38173.0,38166.0,0.18178777]
[1646650157634,0.20029748,38173.0,38166.0,0.17778777]
[1646650157891,0.25,38171.0,38166.0,0.17778777]
[1646650159090,0.05,38170.0,38166.0,0.17778777]
[1646650159993,0.25,38172.0,38166.0,0.17778777]
[1646650160998,0.25,38171.0,38166.0,0.17778777]
[1646650161193,0.04861949,38170.0,38166.0,0.17778777]
[1646650162936,0.04861949,38170.0,38166.0,0.24330677]
[1646650163234,0.04861949,38170.0,38167.0,0.3]
[1646650163434,0.04861949,38170.0,38166.0,0.24330677]
[1646650163638,0.5,38172.0,38166.0,0.24330677]
[1646650163836,0.45,38172.0,38166.0,0.17778777]
[1646650164035,0.5,38172.0,38166.0,0.24330777]
[1646650164237,0.21151189,38178.0,38167.0,0.52136497]
[1646650164437,0.27746986,38180.0,38169.0,0.06550132]
[1646650164438,0.21151189,38180.0,38169.0,0.06550132]
[1646650164636,0.34201189,38181.0,38170.0,0.36464523]
[1646650164837,0.1305,38181.0,38170.0,0.36464523]
[1646650165386,0.53861189,38182.0,38175.0,0.17610101]
[1646650165387,0.50768643,38182.0,38175.0,0.17610101]
[1646650165586,0.23058643,38182.0,38175.0,0.22830101]
[1646650165785,0.23058643,38182.0,38175.0,0.0522]
[1646650165786,0.74209832,38182.0,38175.0,0.0522]
[1646650165980,0.21151189,38181.0,38175.0,0.0522]
[1646650166186,0.45,38179.0,38168.0,0.0522]
[1646650166380,0.32619,38178.0,38170.0,0.003]
[1646650166585,0.24609209,38171.0,38170.0,0.003]
[1646650166880,0.74652393,38171.0,38170.0,0.003]
[1646650167082,1.24652393,38171.0,38170.0,0.003]
[1646650167281,1.45803582,38171.0,38170.0,0.003]
[1646650167681,0.02619,38170.0,38156.0,0.5999]
[1646650167884,0.16735795,38166.0,38163.0,0.00078917]
[1646650168081,0.19288853,38164.0,38163.0,0.00078917]
[1646650168283,0.85406311,38164.0,38163.0,0.00078917]
[1646650168882,0.02619,38163.0,38160.0,0.00019729]
[1646650169134,0.82539,38163.0,38160.0,0.00019729]
[1646650169331,0.45,38161.0,38160.0,0.00019729]
[1646650169532,0.52619,38161.0,38160.0,0.00019729]
[1646650169931,0.07619,38160.0,38155.0,0.00118372]
[1646650170132,0.18390165,38157.0,38155.0,0.00118372]
[1646650171132,0.22619,38159.0,38155.0,0.00118372]
[1646650171436,0.02619,38159.0,38155.0,0.00118372]
[1646650171935,0.02610923,38159.0,38155.0,0.00118372]
[1646650172134,0.02610923,38159.0,38155.0,0.195616]
[1646650172535,0.02610923,38159.0,38155.0,0.1958133]
[1646650172883,0.05,38160.0,38155.0,0.2613523]
[1646650173086,0.05,38163.0,38155.0,0.2613523]
[1646650173282,0.05,38166.0,38155.0,0.2613523]
[1646650173483,0.8,38167.0,38155.0,0.2613523]
[1646650173682,0.47619,38167.0,38160.0,0.25399915]
[1646650173884,0.62272091,38173.0,38161.0,0.26366656]
[1646650174086,0.25,38172.0,38161.0,0.26366656]
[1646650174283,0.45,38172.0,38160.0,0.31953415]
[1646650174685,0.2,38170.0,38160.0,0.065535]
[1646650174886,0.45,38168.0,38158.0,0.21681716]
[1646650175084,0.18443774,38163.0,38160.0,0.0001973]
[1646650175985,0.18443774,38163.0,38158.0,0.21517519]
[1646650177232,0.45,38166.0,38158.0,0.21517519]
[1646650177429,0.45,38166.0,38159.0,0.06573329]
[1646650177630,0.45,38166.0,38159.0,0.00019729]
[1646650178232,0.05,38165.0,38159.0,0.00019729]
[1646650178533,0.05,38165.0,38160.0,0.00019729]
[1646650178730,0.05,38165.0,38158.0,0.21517519]
[1646650178731,0.00039457,38159.0,38158.0,0.21517519]
[1646650179732,0.00039457,38159.0,38158.0,0.51517519]
[1646650181182,0.00039457,38159.0,38158.0,0.21517519]
[1646650181483,0.05,38165.0,38159.0,0.67419609]
[1646650184834,0.25,38163.0,38159.0,0.67419609]
[1646650187332,0.26395512,38166.0,38159.0,0.67419609]
[1646650187531,0.71395512,38166.0,38159.0,0.67419609]
[1646650191834,0.71395512,38166.0,38161.0,0.16238931]
[1646650192234,0.71395512,38166.0,38162.0,0.1925183]
[1646650192832,0.25,38163.0,38159.0,0.67419609]
[1646650193935,0.25,38163.0,38159.0,1.02896206]
[1646650194131,0.25,38163.0,38159.0,0.82984754]
[1646650194532,0.25,38163.0,38159.0,1.12984754]
[1646650194835,0.25,38163.0,38159.0,0.82984754]
[1646650195686,0.05,38166.0,38159.0,0.82984754]
[1646650195882,0.25,38163.0,38159.0,0.82984754]
[1646650196283,0.45,38166.0,38160.0,0.3]
[1646650196485,0.1344,38170.0,38161.0,0.0522]
[1646650196684,0.06746291,38174.0,38169.0,0.1998]
[1646650196883,0.61510323,38175.0,38169.0,0.1998]
[1646650196884,0.25,38175.0,38169.0,0.0999]
[1646650197084,0.46248781,38175.0,38172.0,0.0999]
[1646650197287,0.19313605,38174.0,38173.0,0.0999]
[1646650197487,0.1998,38172.0,38165.0,0.3]
[1646650197684,0.1998,38172.0,38170.0,0.0999]
[1646650198383,0.2498,38172.0,38162.0,0.01494805]
[1646650198584,0.2498,38172.0,38170.0,0.0999]
[1646650198794,0.4998,38172.0,38170.0,0.0999]
[1646650199235,0.4998,38172.0,38164.0,0.365528]
[1646650199435,0.2498,38172.0,38164.0,0.065528]
[1646650199635,0.2498,38172.0,38164.0,0.365528]
[1646650200238,0.2498,38172.0,38164.0,0.065528]
[1646650200437,0.2498,38172.0,38164.0,0.365528]
[1646650201039,0.2498,38172.0,38166.0,0.213096]
[1646650201238,0.2498,38172.0,38164.0,0.365528]
[1646650201439,0.45,38171.0,38164.0,0.365528]
[1646650201637,0.45,38171.0,38164.0,0.065528]
[1646650201836,0.05,38170.0,38164.0,0.065528]
[1646650202236,0.05,38170.0,38163.0,0.36096624]
[1646650202438,0.15419476,38167.0,38162.0,0.3]
[1646650202649,0.15419476,38167.0,38161.0,0.0522]
[1646650203282,0.20419476,38167.0,38161.0,0.0522]
[1646650203482,0.05833181,38164.0,38161.0,0.0522]
[1646650203684,0.20419476,38167.0,38159.0,0.67419609]
[1646650204384,0.20007236,38161.0,38159.0,0.67419609]
[1646650208240,0.25007236,38161.0,38159.0,0.67419609]
[1646650208839,0.25007236,38161.0,38159.0,0.10671711]
[1646650210685,0.06170285,38160.0,38159.0,0.10671711]
[1646650210885,0.25007236,38161.0,38159.0,0.10671711]
[1646650211286,0.50336483,38161.0,38159.0,0.10671711]
[1646650212485,0.25007236,38161.0,38159.0,0.10671711]
[1646650213487,0.23105903,38160.0,38159.0,0.10671711]
[1646650213885,0.25007236,38161.0,38159.0,0.10671711]
[1646650216236,0.45007236,38161.0,38159.0,0.10671711]
[1646650216436,0.25007236,38161.0,38159.0,0.10671711]
[1646650217736,0.24007236,38161.0,38159.0,0.10671711]
[1646650222446,0.04,38161.0,38159.0,0.10671711]
[1646650222646,0.25,38164.0,38159.0,0.10671711]
[1646650223350,0.25,38164.0,38160.0,0.20439165]
[1646650223748,0.05,38165.0,38160.0,0.20439165]
[1646650223946,0.05,38165.0,38160.0,0.56992265]
[1646650224151,0.21248781,38168.0,38160.0,0.56992265]
[1646650224446,0.35188781,38170.0,38161.0,0.0522]
[1646650224646,0.1394,38170.0,38166.0,0.2188645]
[1646650224849,0.45,38170.0,38164.0,0.0522]
[1646650225247,0.45,38170.0,38164.0,0.3522]
[1646650225693,0.21248781,38171.0,38165.0,0.17065519]
[1646650226187,0.45,38170.0,38164.0,0.0522]
[1646650226689,0.05,38169.0,38164.0,0.0522]
[1646650226989,0.05,38169.0,38164.0,0.21022981]
[1646650227988,0.05,38169.0,38164.0,0.40303214]
[1646650229244,0.45,38170.0,38164.0,0.40303214]
[1646650229445,0.05,38169.0,38164.0,0.21022981]
[1646650230645,0.26248781,38171.0,38164.0,0.0522]
[1646650231645,0.26248781,38171.0,38164.0,0.25532988]
[1646650231845,0.45,38170.0,38164.0,0.25532988]
[1646650232044,0.66092274,38172.0,38164.0,0.25532988]
[1646650232646,0.45,38170.0,38164.0,0.0522]
[1646650232882,0.05,38170.0,38164.0,0.0522]
[1646650233085,0.66092274,38172.0,38164.0,0.0522]
[1646650233284,0.45,38170.0,38164.0,0.0522]
[1646650233687,0.05,38169.0,38164.0,0.0522]
[1646650235693,0.66092274,38172.0,38164.0,0.0522]
[1646650235891,0.66092274,38172.0,38167.0,0.21979674]
[1646650236092,0.44843493,38172.0,38167.0,0.21979674]
[1646650236292,0.44843493,38172.0,38164.0,0.0522]
[1646650236738,0.69843493,38172.0,38164.0,0.0522]
[1646650237838,0.44843493,38172.0,38164.0,0.0522]
[1646650239046,0.2498,38172.0,38166.0,0.18769001]
[1646650239244,0.07538001,38165.0,38162.0,0.20145986]
[1646650239440,0.07538001,38165.0,38162.0,0.0522]
[1646650239641,0.07538001,38165.0,38163.0,0.065521]
[1646650239847,0.07538001,38165.0,38164.0,0.33886337]
[1646650240046,0.07538001,38165.0,38164.0,0.66472203]
[1646650240244,0.1998,38172.0,38166.0,0.02619]
[1646650240493,0.1998,38172.0,38167.0,0.29468586]
[1646650240687,0.1998,38172.0,38168.0,0.0522]
[1646650241088,0.1998,38172.0,38169.0,0.19769346]
[1646650241289,0.1998,38172.0,38170.0,0.0522]
[1646650242289,0.4175403,38172.0,38170.0,0.0522]
[1646650242890,0.05321773,38171.0,38170.0,0.0522]
[1646650243093,0.35321773,38171.0,38165.0,0.503]
[1646650243294,0.1777303,38166.0,38165.0,0.503]
[1646650243889,0.1777303,38166.0,38165.0,0.5]
[1646650244351,0.1777303,38166.0,38161.0,0.17542234]
[1646650245151,0.2277303,38166.0,38160.0,0.003]
[1646650245854,0.2277303,38166.0,38159.0,0.61981711]
[1646650246253,0.2277303,38166.0,38159.0,0.78303367]
[1646650247052,0.2277303,38166.0,38159.0,0.28303367]
[1646650247655,0.2266025,38165.0,38159.0,0.28303367]
[1646650248087,0.2266025,38165.0,38159.0,0.11981711]
[1646650248282,0.2266025,38165.0,38159.0,0.10671711]
[1646650248684,0.2527925,38165.0,38159.0,0.10671711]
[1646650249185,1.22103583,38165.0,38159.0,0.10671711]
[1646650249388,0.42183583,38165.0,38159.0,0.10671711]
[1646650249583,1.22103583,38165.0,38159.0,0.10671711]
[1646650250585,0.42183583,38165.0,38159.0,0.10671711]
[1646650250786,1.0519925,38165.0,38159.0,0.10671711]
[1646650251640,0.02619,38164.0,38159.0,0.10671711]
[1646650252044,0.07619,38164.0,38159.0,0.10671711]
[1646650253241,0.05,38164.0,38159.0,0.10671711]
[1646650253640,0.05,38164.0,38162.0,0.1998]
[1646650254040,0.05,38164.0,38159.0,0.10671711]
[1646650254242,0.02619,38163.0,38159.0,0.10671711]
[1646650254442,0.05,38164.0,38159.0,0.10671711]
[1646650256084,0.4766025,38165.0,38159.0,0.10671711]
[1646650256286,0.4766025,38165.0,38159.0,0.29049935]
[1646650256287,0.05,38165.0,38159.0,0.29049935]
[1646650257083,0.67558781,38170.0,38159.0,0.29049935]
[1646650257287,0.05,38169.0,38159.0,0.29049935]
[1646650257483,0.29852348,38169.0,38159.0,0.29049935]
[1646650258284,0.2,38168.0,38159.0,0.29049935]
[1646650258484,0.05,38167.0,38159.0,0.29049935]
[1646650258887,0.25,38164.0,38159.0,0.29049935]
[1646650259133,0.3,38164.0,38159.0,0.10671711]
[1646650259734,0.32619,38164.0,38159.0,0.10671711]
[1646650260135,0.1991558,38162.0,38159.0,0.10671711]
[1646650260334,0.05,38161.0,38159.0,0.10671711]
[1646650265504,0.5,38161.0,38159.0,0.10671711]
[1646650265704,1.08098439,38165.0,38159.0,0.10671711]
[1646650266505,0.45,38161.0,38159.0,0.10671711]
[1646650266746,0.05,38160.0,38159.0,0.31270958]
[1646650267348,0.07619,38165.0,38159.0,0.31270958]
[1646650267549,0.05,38165.0,38159.0,0.31270958]
[1646650267753,0.02619,38166.0,38159.0,0.31270958]
[1646650268746,0.45,38161.0,38159.0,0.31270958]
[1646650269147,0.46060046,38157.0,38156.0,0.19741898]
[1646650269346,0.46060046,38157.0,38155.0,0.00118372]
[1646650269546,0.51060046,38157.0,38155.0,0.00118372]
[1646650270145,0.51060046,38157.0,38155.0,0.194534]
[1646650270395,0.51060046,38157.0,38156.0,0.21484005]
[1646650270795,0.51060046,38157.0,38156.0,0.51484005]
[1646650272093,0.51060046,38157.0,38156.0,0.21484005]
[1646650273894,0.51060046,38157.0,38155.0,0.19474866]
[1646650274566,0.51060046,38157.0,38155.0,0.194534]
[1646650277564,0.51060046,38157.0,38155.0,0.00118372]
[1646650277992,0.51060046,38157.0,38155.0,0.19954671]
[1646650278200,0.46060046,38157.0,38155.0,0.19954671]
[1646650278593,0.46060046,38157.0,38155.0,0.00118372]
[1646650279194,0.51060046,38157.0,38155.0,0.00118372]
[1646650281295,0.80429123,38157.0,38155.0,0.00118372]
[1646650282339,0.51060046,38157.0,38155.0,0.00118372]
[1646650283540,0.51060046,38157.0,38153.0,0.16296576]
[1646650283742,0.51060046,38157.0,38153.0,0.15636398]
[1646650284144,0.46060046,38157.0,38153.0,0.15636398]
[1646650285142,0.51060046,38157.0,38153.0,0.22190798]
[1646650285396,0.51060046,38157.0,38153.0,0.15636398]
[1646650286999,0.51060046,38157.0,38153.0,0.22190698]
[1646650287803,0.51060046,38157.0,38152.0,0.48518705]
[1646650287804,0.51060046,38157.0,38152.0,0.002]
[1646650288002,0.3,38156.0,38152.0,0.00221467]
[1646650288302,0.51060046,38157.0,38152.0,0.00221467]
[1646650288804,0.25528589,38153.0,38152.0,0.00221467]
[1646650288999,0.19772116,38153.0,38152.0,0.002]
[1646650289244,0.19772116,38153.0,38152.0,0.00221426]
[1646650290345,0.19772116,38153.0,38152.0,0.002]
[1646650295596,0.5,38156.0,38152.0,0.002]
[1646650296201,0.3,38156.0,38152.0,0.002]
[1646650296398,0.46060046,38157.0,38152.0,0.05441451]
[1646650296656,0.46060046,38157.0,38153.0,0.1964029]
[1646650296863,0.46060046,38157.0,38154.0,0.0522]
[1646650297058,0.46060046,38157.0,38155.0,0.25774565]
[1646650298055,0.46060046,38157.0,38156.0,0.0522]
[1646650298256,0.46060046,38157.0,38156.0,0.06872178]
[1646650299756,0.46060046,38157.0,38156.0,0.09491178]
[1646650301402,0.46060046,38157.0,38156.0,0.06872178]
[1646650308597,0.46052564,38157.0,38156.0,0.06872178]
[1646650313741,0.46052564,38157.0,38156.0,0.16862178]
[1646650314742,0.16013907,38157.0,38156.0,0.16862178]
[1646650314943,0.14231443,38169.0,38156.0,0.16862178]
[1646650314944,0.14231443,38169.0,38167.0,0.21253844]
[1646650315143,0.35494284,38165.0,38164.0,0.2011045]
[1646650315595,0.35494284,38165.0,38164.0,0.36023331]
[1646650315796,0.35494284,38165.0,38164.0,0.42636543]
[1646650316796,0.67755916,38178.0,38170.0,0.01538217]
[1646650317000,0.41920229,38178.0,38171.0,0.0522]
[1646650317794,0.62318093,38178.0,38171.0,0.0522]
[1646650317996,0.00021444,38176.0,38171.0,0.0522]
[1646650318196,0.19707937,38172.0,38171.0,0.0522]
[1646650319867,0.18312196,38172.0,38171.0,0.0522]
[1646650326498,0.18312196,38172.0,38165.0,0.0522]
[1646650326946,0.18312196,38172.0,38166.0,0.003]
[1646650327547,0.00021445,38171.0,38166.0,0.003]
[1646650328246,0.00021445,38171.0,38163.0,0.20857152]
[1646650328645,0.18312196,38172.0,38163.0,0.20857152]
[1646650328847,0.00021445,38170.0,38163.0,0.20857152]
[1646650329046,0.00021445,38170.0,38162.0,0.08225578]
[1646650329250,0.00021445,38170.0,38161.0,0.60330969]
[1646650329251,0.00021445,38170.0,38161.0,0.40320969]
[1646650329447,0.00021445,38170.0,38161.0,0.2384]
[1646650329648,0.00021445,38170.0,38161.0,0.1039]
[1646650329849,0.02619,38171.0,38161.0,0.1039]
[1646650330048,0.02619,38171.0,38161.0,0.0999]
[1646650330248,0.00021445,38169.0,38161.0,0.0999]
[1646650331093,0.02619,38171.0,38161.0,0.0999]
[1646650331294,0.00021445,38169.0,38161.0,0.0999]
[1646650332296,0.02619,38171.0,38161.0,0.0999]
[1646650332497,0.20743146,38166.0,38161.0,0.0999]
[1646650333096,0.00021445,38169.0,38161.0,0.0999]
[1646650333496,0.06869362,38169.0,38161.0,0.0999]
[1646650333696,0.00021445,38169.0,38161.0,0.0999]
[1646650334145,0.15700481,38169.0,38161.0,0.0999]
[1646650334543,0.15679036,38169.0,38161.0,0.0999]
[1646650334943,0.15700162,38169.0,38161.0,0.0999]
[1646650335545,0.02619,38168.0,38161.0,0.0999]
[1646650337546,0.15700162,38169.0,38161.0,0.0999]
[1646650337752,0.00021126,38169.0,38162.0,0.3]
[1646650337999,0.00021126,38169.0,38168.0,0.0999]
[1646650338196,0.139,38174.0,38162.0,0.0522]
[1646650338396,0.139,38174.0,38166.0,0.21303949]
[1646650338397,0.00021445,38169.0,38166.0,0.21303949]
[1646650338595,0.00021445,38169.0,38163.0,0.3]
[1646650338596,0.00021445,38169.0,38167.0,0.3522]
[1646650338794,0.00021445,38169.0,38168.0,0.3522]
[1646650339196,0.00021445,38169.0,38168.0,0.0522]
[1646650339396,0.19036252,38175.0,38168.0,0.0522]
[1646650339599,0.00021456,38170.0,38169.0,0.3]
[1646650339795,0.00021456,38170.0,38169.0,0.3522]
[1646650339994,0.00021456,38170.0,38169.0,0.552]
[1646650340397,0.00021456,38170.0,38169.0,0.1521]
[1646650340596,0.69876785,38178.0,38169.0,0.552]
[1646650340798,0.87568215,38178.0,38172.0,0.16724185]
[1646650341201,0.87568215,38178.0,38177.0,0.0999]
[1646650341850,0.59611659,38178.0,38177.0,0.0999]
[1646650342049,0.41920229,38178.0,38177.0,0.0999]
[1646650342451,0.46920229,38178.0,38177.0,0.0999]
[1646650342753,0.91920229,38178.0,38177.0,0.0999]
[1646650342956,1.21920229,38178.0,38177.0,0.0999]
[1646650343150,0.02619,38175.0,38163.0,0.0522]
[1646650343350,0.32619,38175.0,38163.0,0.0522]
[1646650343750,0.15631611,38169.0,38166.0,0.17398726]
[1646650343951,0.20631611,38169.0,38163.0,0.0522]
[1646650344553,0.20654747,38169.0,38167.0,0.1998]
[1646650345151,0.20654747,38169.0,38160.0,0.25330831]
[1646650345152,0.18260595,38165.0,38160.0,0.21137413]
[1646650345395,0.43240595,38165.0,38160.0,0.21137413]
[1646650345796,0.43240595,38165.0,38163.0,0.1998]
[1646650346197,0.43240595,38165.0,38163.0,0.0999]
[1646650346399,0.43240595,38165.0,38163.0,0.1998]
[1646650348203,0.23260595,38165.0,38163.0,0.1998]
[1646650348399,0.43240595,38165.0,38163.0,0.1998]
[1646650349156,0.43240595,38165.0,38164.0,0.06528]
[1646650361115,0.43240595,38165.0,38164.0,0.0522]
[1646650364344,0.43240595,38165.0,38163.0,0.1998]
[1646650364546,0.23260595,38165.0,38163.0,0.1998]
[1646650364748,0.1998,38164.0,38163.0,0.1998]
[1646650365345,0.2498,38164.0,38163.0,0.1998]
[1646650375252,0.36772953,38162.0,38157.0,0.3]
[1646650375500,0.36772953,38162.0,38156.0,0.26412506]
[1646650375703,0.36772953,38162.0,38156.0,0.06553]
[1646650375900,0.1998,38158.0,38156.0,0.06553]
[1646650376102,0.1998,38158.0,38156.0,0.13063]
[1646650376300,0.1998,38158.0,38156.0,0.58704971]
[1646650376600,0.18260595,38165.0,38163.0,0.0583038]
[1646650377002,0.18260595,38165.0,38163.0,0.1234038]
[1646650377602,0.18260595,38165.0,38164.0,0.0999]
[1646650378204,0.23260595,38165.0,38164.0,0.0999]
[1646650383401,0.23260595,38165.0,38164.0,0.4521]
[1646650383600,0.23260595,38165.0,38164.0,0.1521]
[1646650383801,0.18260595,38165.0,38164.0,0.1521]
[1646650384201,0.18260595,38165.0,38164.0,0.34737771]
[1646650384400,0.18260595,38165.0,38164.0,0.64737771]
[1646650387355,0.18260595,38165.0,38164.0,0.34737771]
[1646650388256,0.18260595,38165.0,38164.0,0.1521]
[1646650389457,0.18260595,38165.0,38164.0,0.0999]
[1646650389661,0.23260595,38165.0,38164.0,0.0999]
[1646650397456,0.23260595,38165.0,38164.0,0.32333874]
[1646650398801,0.23260595,38165.0,38164.0,0.0999]
[1646650401301,0.2324988,38165.0,38164.0,0.0999]
[1646650403658,0.23085132,38165.0,38164.0,0.10798304]
[1646650403859,0.22913267,38165.0,38164.0,0.10711945]
[1646650404067,0.22749194,38165.0,38164.0,0.10711945]
[1646650405261,0.27558467,38162.0,38160.0,0.23864819]
[1646650405505,0.05,38161.0,38160.0,0.23864819]
[1646650405703,0.05,38161.0,38160.0,0.0522]
[1646650405899,0.05,38161.0,38160.0,0.1521]
[1646650409006,0.05,38161.0,38160.0,0.17381783]
[1646650410256,0.27558467,38162.0,38160.0,0.17381783]
[1646650410659,0.27558467,38162.0,38161.0,0.0999]
[1646650413505,0.27558467,38162.0,38161.0,0.10718351]
[1646650415205,0.6555081,38162.0,38161.0,0.10718351]
[1646650416206,0.27558467,38162.0,38161.0,0.10718351]
[1646650419260,0.28375498,38162.0,38161.0,0.0999]
[1646650422516,0.53375498,38162.0,38161.0,0.0999]
[1646650423216,0.28375498,38162.0,38161.0,0.0999]
[1646650423615,0.53375498,38162.0,38161.0,0.0999]
[1646650424157,0.28375498,38162.0,38161.0,0.0999]
[1646650424358,0.53375498,38162.0,38161.0,0.0999]
[1646650424761,0.28375498,38162.0,38161.0,0.0999]
[1646650426257,0.53375498,38162.0,38161.0,0.0999]
[1646650427459,0.28375498,38162.0,38161.0,0.0999]
[1646650428306,0.53375498,38162.0,38161.0,0.0999]
[1646650435162,0.30861262,38156.0,38152.0,0.00219716]
[1646650435706,0.1998,38154.0,38152.0,0.00219716]
[1646650435908,0.2498,38154.0,38152.0,0.00219716]
[1646650436111,0.2498,38154.0,38153.0,0.20576568]
[1646650436507,0.2498,38154.0,38153.0,0.50576568]
[1646650436710,0.2498,38154.0,38153.0,0.3]
[1646650436908,0.2498,38154.0,38152.0,0.10209714]
[1646650438007,0.2498,38154.0,38152.0,0.1019]
[1646650438505,0.2448,38154.0,38152.0,0.1019]
[1646650439661,0.00543448,38153.0,38152.0,0.1019]
[1646650442364,0.00543448,38153.0,38152.0,0.4019]
[1646650443013,0.00543448,38153.0,38152.0,0.4541]
[1646650443214,0.00543448,38153.0,38152.0,0.66930858]
[1646650443612,0.55331262,38156.0,38152.0,0.66930858]
[1646650443613,0.35861262,38156.0,38152.0,0.66930858]
[1646650443815,0.35861262,38156.0,38155.0,0.18252161]
[1646650444214,0.35861262,38156.0,38154.0,0.0999]
[1646650444917,0.1947,38155.0,38154.0,0.0999]
[1646650449067,0.20443331,38155.0,38154.0,0.0999]
[1646650463260,0.19824133,38155.0,38154.0,0.0999]
[1646650464060,0.20065129,38155.0,38154.0,0.0999]
[1646650465405,0.20065129,38155.0,38154.0,0.84458526]
[1646650466412,0.40065129,38155.0,38154.0,0.84458526]
[1646650469365,0.40065129,38155.0,38154.0,0.27689167]
[1646650473110,0.20065129,38155.0,38154.0,0.27689167]